Cogmind - Beta 13 @@@ ROGUE MODE // 2024.04.05 @ 15:19:07 Player: Chickoo Result: Self-destructed Performance ------------- Evolutions (2) 1000 Regions Visited (3) 600 Robots Destroyed (49) 245 Value Destroyed (1469) 1469 Prototype IDs (1) 20 Alien Tech Used (0) 0 Bonus (0) 0 TOTAL SCORE: 3334 Bonus ------- None Cogmind --------- Core Integrity 208/550 Matter 108/300 Energy 98/100 System Corruption 0% Temperature Warm (187) Movement Core (100) Ox1 Location -8/Materials Parts ------- > --- POWER (1) -------- (None) > --- PROPULSION (3) --- (None) > --- UTILITY (5) ------ Small Storage Unit Improved Signal Interpreter Advanced Targeting Computer > --- WEAPON (2) ------- (None) > --- INVENTORY (8) ---- Titanium Leg Medium Storage Unit Hacking Suite Particle Gun Datajack Mining Claw Peak State ------------ > --- POWER ------------ Improved Ion Engine > --- PROPULSION ------- Titanium Leg Titanium Leg Aerolev Unit > --- UTILITY ---------- Large Storage Unit Sensor Array Improved Signal Interpreter Light Armor Plating Improved Light Armor Plating > --- WEAPON ----------- Gauss Rifle Flak Cannon > --- INVENTORY -------- Carbon-fiber Leg Titanium Leg Titanium Leg Titanium Leg Improved Heat Sink Medium Storage Unit Large Matter Pod Improved Weapon Shielding Hacking Suite Particle Gun Heavy Assault Cannon Mini Grenade Launcher Datajack Mining Claw [Rating: 31] Favorites ----------- Power Ion Engine Engine Ion Engine Propulsion Aluminum Leg Treads Light Treads Leg Aluminum Leg Hover Unit Aerolev Unit Utility Medium Storage Unit Device Sensor Array Storage Medium Storage Unit Processor Improved Signal Interpreter Protection Light Armor Plating Weapon Assault Rifle Energy Gun Particle Gun Ballistic Gun Assault Rifle Ballistic Cannon Flak Cannon Launcher Mini Grenade Launcher Slashing Weapon Mining Claw Special Melee Weapon Datajack Build | -11 -10 -10 -8 ------- Run | Yrd Mat Sub Mat Slots Evolved 4 | . . . 4 Power . | . . . . Propulsion 1 | . . . 1 Utility 3 | . . . 3 Weapon . | . . . . Parts Attached 64 | 7 16 4 37 Power 5 | 1 2 1 1 Engine 5 | 1 2 1 1 Core . | . . . . Reactor . | . . . . Propulsion 15 | 2 3 1 9 Treads 3 | 2 . . 1 Leg 9 | . 3 1 5 Wheel . | . . . . Hover 3 | . . . 3 Flight . | . . . . Utility 24 | 1 5 2 16 Device 12 | . 4 2 6 Storage 7 | 1 1 . 5 Processor 2 | . . . 2 Hackware . | . . . . Protection 3 | . . . 3 Artifact . | . . . . Weapon 20 | 3 6 . 11 Energy Gun 1 | . . . 1 Energy Cannon . | . . . . Ballistic Gun 12 | 3 4 . 5 Ballistic Cannon 1 | . . . 1 Launcher 2 | . . . 2 Special Weapon . | . . . . Impact Weapon . | . . . . Slashing Weapon 3 | . 1 . 2 Piercing Weapon . | . . . . Special Melee Weapon 1 | . 1 . . Unidentified Prototypes 1 | . . . 1 Parts Lost 23 | . 3 3 17 Power 4 | . 1 1 2 Propulsion 9 | . 2 1 6 Utility 6 | . . 1 5 Weapon 4 | . . . 4 Highest Loss Streak 10 | . 3 3 10 To Critical Strikes . | . . . . Average Slot Usage (%) 95 | . 98 97 91 Engine 11 | . 14 14 7 Treads 6 | . 12 . 2 Leg 16 | . 14 27 13 Hover 2 | . . . 6 Device 14 | . 13 13 17 Storage 11 | . 14 14 9 Processor 1 | . . . 2 Protection 5 | . . . 13 Ballistic Gun 19 | . 27 14 12 Ballistic Cannon 1 | . . . 3 Slashing Weapon 2 | . . 14 1 Naked Turns . | . . . . Heaviest Build 46 | 13 20 20 46 Greatest Support 51 | 40 40 20 51 Greatest Overweight (x) 4 | 3 4 1 4 Average Overweight (x) . | . . . . Largest Inventory Capacity 15 | 8 10 10 15 Average Capacity 9 | 7 8 10 10 Most Carried 15 | 2 10 10 15 Average Carried 8 | 1 7 9 9 Final Capacity 10 | 8 10 10 8 Final Carried 10 | 2 10 9 6 Class Distribution -------------------- 59% | Mutant 40% | Scavenger-Mutant Dominant Class ---------------- Mutant | -10/Materials Mutant | -10/Subcaves Scavenger-Mutant | -8/Materials Resources | -11 -10 -10 -8 ----------- Run | Yrd Mat Sub Mat Matter Collected 1583 | 210 699 49 625 Remotely . | . . . . Salvage Created 1579 | . 735 95 749 Parts 102 | . 45 6 51 Haulers Intercepted 2 | . . . 2 Recyclers Shooed 3 | . 2 . 1 Parts Field Recycled . | . . . . Retrieved Matter . | . . . . Parts Self-Destructed 9 | . . 9 . Prevented . | . . . . Kills | -11 -10 -10 -8 ------- Run | Yrd Mat Sub Mat Combat Hostiles Destroyed 32 | . 14 2 16 Melee 4 | . . 2 2 Guns 19 | . 14 . 5 Cannons 3 | . . . 3 AOE 6 | . . . 6 Classes Destroyed 11 | . 7 . 4 Worker 2 | . 1 . 1 Builder 3 | . 1 . 2 Tunneler 2 | . . . 2 Hauler 2 | . . . 2 Recycler 2 | . 2 . . Operator 1 | . 1 . . Watcher 5 | . 3 . 2 Swarmer 3 | . 3 . . Grunt 25 | . 11 2 12 Sentry 2 | . . . 2 Hunter 2 | . . . 2 Best Kill Streak 10 | . 6 1 10 Combat Bots Only 7 | . 4 1 7 Max Kills in Single Turn 4 | . 2 1 4 Gunslinging . | . . . . Exploded 2 | . . . 2 Melee 1 | . . 1 1 Uniques/NPCs Destroyed . | . . . . Combat | -11 -10 -10 -8 -------- Run | Yrd Mat Sub Mat Hostile Shots Fired 269 | . 85 33 151 Missed 68 | . 23 4 41 Damage Taken 2908 | . 750 359 1799 Core 586 | . 156 88 342 Absorbed by Shields . | . . . . Core Remaining (%) 51 | 100 . 2 . Volleys Fired 120 | . 61 . 59 Largest 2 | . 2 . 2 Hottest 93 | . 40 . 93 Shots Fired 238 | . 121 . 117 Gun 202 | . 121 . 81 Cannon 30 | . . . 30 Launcher 6 | . . . 6 Special . | . . . . Kinetic 229 | . 121 . 108 Thermal 3 | . . . 3 Explosive 6 | . . . 6 Electromagnetic . | . . . . Robot Hit Streak 12 | . 11 . 12 Robot Miss Streak 9 | . 3 . 9 Penetration Max 1 | . . . 1 Secondary Targets 5 | . 5 . . Max Gunslinging Chain 1 | . 1 . . Shots Hit Robots 184 | . 81 12 91 Core Hits 110 | . 34 2 74 Critical Kills . | . . . . Critical Parts Destroyed 1 | . . . 1 Critical Strikes 1 | . . . 1 Destroy 1 | . . . 1 Melee Attacks 49 | . 1 19 29 Impact . | . . . . Slashing 49 | . 1 19 29 Piercing . | . . . . Sneak Attacks . | . . . . Combat Hostiles . | . . . . Follow-up Attacks . | . . . . Damage Inflicted 4246 | . 1116 298 2832 Guns 1823 | . 1116 . 707 Cannons 522 | . . . 522 Explosions 1185 | . . . 1185 Melee 716 | . . 298 418 Ramming . | . . . . Kinetic 2299 | . 1116 . 1183 Thermal 410 | . . . 410 Explosive 821 | . . . 821 Electromagnetic . | . . . . Impact . | . . . . Slashing 716 | . . 298 418 Piercing . | . . . . Highest Corruption . | . . . . Average Corruption . | . . . . Corruption Purged . | . . . . Corruption Blocked . | . . . . Overload Shots . | . . . . Overflow Damage 201 | . . 14 187 Projectiles . | . . . . Explosions 187 | . . . 187 Melee 14 | . . 14 . Knockbacks 13 | . . . 13 Impact . | . . . . Kinetic 11 | . . . 11 Secondary 2 | . . . 2 Self-Inflicted Damage 95 | . . . 95 Shots 2 | . . . 2 Rammed . | . . . . Targets Rammed . | . . . . Kicked . | . . . . Crushed . | . . . . Highest Temperature 200 | . 20 . 200 Average Temperature 47 | . 8 . 58 Received Heat Transfer 1419 | . 435 201 783 Siege Activations . | . . . . Robots Corrupted . | . . . . Combat Hostiles . | . . . . Parts Fried . | . . . . Impact Corruptions . | . . . . Robots Melted . | . . . . Combat Hostiles . | . . . . Parts Melted . | . . . . Heat Transferred 311 | . . . 311 Parts Sabotaged . | . . . . Parts Stolen . | . . . . Parts Stripped . | . . . . Power Chain Reactions . | . . . . Alert | -11 -10 -10 -8 ------- Run | Yrd Mat Sub Mat Peak Influence 260 | . 260 . 256 Initial . | . . . . Average 96 | . 138 . 69 Maximum Alert Level 1 | . 1 . 1 Low Security (%) 88 | 100 78 . 96 Level 1 11 | . 21 . 3 Level 2 . | . . . . Level 3 . | . . . . Level 4 . | . . . . Level 5 . | . . . . High Security . | . . . . Max Security . | . . . . Squads Dispatched 7 | . 3 . 4 Investigation 2 | . 1 . 1 Extermination . | . . . . Reinforcement 5 | . 2 . 3 Assault . | . . . . Garrison . | . . . . Intercept . | . . . . Searches Triggered . | . . . . Construction Impeded 1 | . . . 1 Haulers Reinforced . | . . . . Active Scanning Responses . | . . . . Cargo Convoy Interrupts . | . . . . Stealth | -11 -10 -10 -8 --------- Run | Yrd Mat Sub Mat Distress Signals 6 | . 1 . 5 Communications Jammed . | . . . . Distress Signals . | . . . . Times Spotted 65 | . 28 2 35 Peak Tracking Total 12 | . 6 2 12 Tactical Retreats 4 | . 3 . 1 Traps | -11 -10 -10 -8 ------- Run | Yrd Mat Sub Mat Traps Triggered . | . . . . Indirectly . | . . . . Trap Hack Attempts . | . . . . Triggered . | . . . . Disarmed . | . . . . Reprogrammed . | . . . . Reused . | . . . . Traps Extracted . | . . . . Installed . | . . . . Triggered . | . . . . Machines | -11 -10 -10 -8 ---------- Run | Yrd Mat Sub Mat Machines Disabled 3 | . . . 3 Max in Single Turn 1 | . . . 1 Machines Repaired . | . . . . Machines Dismantled . | . . . . Machines Sabotaged . | . . . . Overloaded Fab Kills . | . . . . Hacking | -11 -10 -10 -8 --------- Run | Yrd Mat Sub Mat Machines Accessed 6 | . 5 . 1 Terminals 6 | . 5 . 1 Fabricators . | . . . . Repair Stations . | . . . . Recycling Units . | . . . . Scanalyzers . | . . . . Garrison Access . | . . . . Total Hacks 18 | . 16 . 2 Successful 8 | . 8 . . Failed 10 | . 8 . 2 Catastrophic 3 | . 1 . 2 Database Lockouts . | . . . . Manual 15 | . 13 . 2 Terminals 18 | . 16 . 2 Fabricators . | . . . . Repair Stations . | . . . . Recycling Units . | . . . . Scanalyzers . | . . . . Garrison Access . | . . . . Terminal Hacks 7 | . 7 . . Robot Analysis 3 | . 3 . . Alert Level 1 | . 1 . . Patrol Status 1 | . 1 . . Recall Investigation 1 | . 1 . . Zone Layout 1 | . 1 . . Fabricator Hacks . | . . . . Repair Station Hacks . | . . . . Recycling Unit Hacks . | . . . . Scanalyzer . | . . . . Garrison Access Hacks . | . . . . Unauthorized Hacks 1 | . 1 . . Terminals 1 | . 1 . . Assimilate 1 | . 1 . . Fabricators . | . . . . Repair Stations . | . . . . Recycling Units . | . . . . Scanalyzers . | . . . . Garrison Access . | . . . . Data Cores Recovered . | . . . . Used . | . . . . Hacking Detections 5 | . 4 . 1 Full Trace Events 2 | . 1 . 1 Feedback Events . | . . . . Feedback Blocked . | . . . . Robot Schematics Acquired . | . . . . Robots Built . | . . . . Authchips . | . . . . Time . | . . . . Total Robot Build Rating . | . . . . Part Schematics Acquired . | . . . . Parts Built . | . . . . Authchips . | . . . . Time . | . . . . Total Part Build Rating . | . . . . Parts Repaired . | . . . . Time . | . . . . Parts Recycled . | . . . . Recycled Matter . | . . . . Retrieved Matter . | . . . . Retrieved Components . | . . . . Parts Scanalyzed . | . . . . Part Schematics Acquired . | . . . . Parts Damaged . | . . . . Bothacking | -11 -10 -10 -8 ------------ Run | Yrd Mat Sub Mat Used RIF Installer . | . . . . Robots Hacked . | . . . . Non-combat . | . . . . Combat . | . . . . Robot Hacks Applied . | . . . . Relay Couplers Released . | . . . . Fabnet Peak Effective % . | . . . . Robots Rewired . | . . . . Allies Hacked . | . . . . Hacks Repelled . | . . . . Allies | -11 -10 -10 -8 -------- Run | Yrd Mat Sub Mat Total Allies 1 | . 1 . . Largest Group 1 | . 1 . . Highest-Rated Group 10 | . 10 . . Highest-Rated Ally 10 | . 10 . . Total Orders . | . . . . Ally Attacks . | . . . . Total Damage . | . . . . Kills . | . . . . Allies Corrupted . | . . . . Allies Melted . | . . . . Intel | -11 -10 -10 -8 ------- Run | Yrd Mat Sub Mat Robot Analysis Total 3 | . 3 . . Derelict Logs Recovered . | . . . . Drone Launches . | . . . . Drone Recoveries . | . . . . Exploration | -11 -10 -10 -8 ------------- Run | Yrd Mat Sub Mat Turns Passed 2630 | 123 1002 425 1080 Spaces Moved 1294 | 73 504 238 479 Core 16 | 14 2 . . Treads 327 | 59 171 . 97 Legs 751 | . 331 238 182 Wheels . | . . . . Hover 200 | . . . 200 Flight . | . . . . Fastest Speed 45 | 50 120 120 45 Average Speed 137 | 152 134 120 146 Slowest Speed 290 | 200 250 190 290 Overloaded Moves . | . . . . Propulsion Burnouts . | . . . . Robots Hopped . | . . . . Cave-ins Triggered . | . . . . Exploration Rate (%) 28 | 5 59 21 30 Regions Visited 3 Branch Regions 1 Pre-discovered Areas . | . . . . Known Exits Taken . | . . . . Unknown Exits Taken 3 | 1 1 1 . Scrap Searched . | . . . . Spaces Dug . | . . . . Terrain Destroyed 52 | . . . 52 Melee . | . . . . Projectile . | . . . . AOE 52 | . . . 52 Terrain Rammed . | . . . . Walls Destroyed . | . . . . Machines Disabled . | . . . . Actions | -11 -10 -10 -8 --------- Run | Yrd Mat Sub Mat Total 1798 | 81 706 336 675 Wait 218 | . 105 75 38 Move 1291 | 72 503 237 479 Hop . | . . . . Pick Up 29 | 2 11 1 15 Fast Attach 26 | 6 4 1 15 Attach 8 | . 1 2 5 Detach . | . . . . Swap 30 | 1 11 1 17 Drop 27 | . 9 . 18 Fire 120 | . 61 . 59 Melee 49 | . 1 19 29 Ram . | . . . . Kick . | . . . . Crush . | . . . . Escape Stasis . | . . . . Rewire . | . . . . Trap . | . . . . Miscellaneous . | . . . . Route ------- -11/Scrapyard -10/Materials (discovered 3 exits: [*Min x2] / [*Sub]) -10/Subcaves -8/Materials (discovered 2 exits: [*Fac] / *Sto) History --------- Turn | Location | Event 27 | -11/Scrapyard | Discovered new exit (range 15) 124 | -11/Scrapyard | Entered Materials 273 | -10/Materials | Discovered new exit (range 17) 308 | -10/Materials | Discovered new exit (range 12) 310 | -10/Materials | Build established: Mutant 380 | -10/Materials | Discovered new exit (range 8) 584 | -10/Materials | Core integrity fell below 50% 629 | -10/Materials | Lost 3 parts (1p2n) 1126 | -10/Materials | Entered Subcaves 1202 | -10/Subcaves | Shifting Twisted Machinery released Spk. Treads 1207 | -10/Subcaves | Shifting Twisted Machinery released Sub. Optics 1248 | -10/Subcaves | Core integrity fell below 20% 1296 | -10/Subcaves | Lost 3 parts (1p1n1u) 1531 | -10/Subcaves | Discovered new exit (range 10) 1551 | -10/Subcaves | Entered Materials 1551 | -8/Materials | Evolved 4 slots: Propulsion x1, Utility x3 1794 | -8/Materials | Lost 4 parts (1p2n1u) 1847 | -8/Materials | Build established: Scavenger-Mutant 2242 | -8/Materials | Discovered new exit (range 11) 2504 | -8/Materials | Discovered new exit (range 12) 2518 | -8/Materials | Identified exit to Storage 2625 | -8/Materials | Core integrity fell below 50% 2631 | -8/Materials | Self-destructed Last Messages --------------- 02619_ K-01 Serf collects debris. 02621_ G-47 Trooper knocked back. 02621_ Destroyed Lgt. Deuterium Engine. 02621_ G-47 Trooper destroyed. 02621_ K-01 Serf destroyed. 02623_ U-05 Engineer lays Concrete. 02623_ Imp. Hover Unit destroyed. 02624_ U-05 Engineer lays Concrete. 02624_ G-47 Trooper knocked back. 02625_ Flak Cannon destroyed. 02625_ U-05 Engineer lays Concrete. 02626_ U-05 Engineer builds a Door. 02627_ U-05 Engineer lays Concrete. 02627_ Aerolev Unit destroyed. 02628_ U-05 Engineer lays Concrete. 02628_ G-47 Trooper destroyed. 02629_ U-05 Engineer lays Concrete. 02629_ Mni. Grenade Launcher destroyed. 02629_ U-05 Engineer lays Concrete. 02630_ Gauss Rifle destroyed. Map ----- +----------------------------------------------------+ | ??????????????????????????? #?????????????????? | | ??????????????????????????? #?????????????????? | | ??????????????????????????? #?????????????????? | | ??????????????????????????# ??????????????????? | | ??????????????????????????# ??????????????????? | | ??????????????????????????# ??????????????????? | | ??????????????????????????# #??????????????????? | | ??????????????????????????# #??????????????????? | | ??????????????????????????# #??????????????????? | | ??????????????????????????# #??????????????????? | | ??????????????????????????# #??????????????????? | | ??????????????????######### #??????????????????? | | ??????????????????# =! # * # #????????????????? | | ???????# ?????????#! == ! u=%=# ??????????????? | | ???????# ????????# !%|t = "?????????????? | | ???????# ????????## g! %gg "?????????????? | | ???????# "???????# [= = [ "?????????????? | | ????????? ??????# %% % ??????????????? | | ???????####+####### !!= r ???????????????? | | ???????+ ! w ????????????????? | | ??????????# g ?????????????????? | | ??????????# " u !!! #??????????????????? | | ??????????# T = ! !!! #??????????????????? | | ??????????# " !! #??????????????????? | | ????####### #??????????????????? | | ????# ! @ #??????????????????? | | ????# < ###????????????????? | | ?#??# ! ""#????????????????? | | ?# ?##### """ "" Y"#????????????????? | | ?# ?????# """"" " ""#????????????????? | | ?# ?????# """"" "" ! ###????????????????? | | ?# ###### " """ """ =%= #?????????????????? | | ?# " g #?????????????????? | | ?# #?????????????????? | | ?# == #?????????????????? | | ?### ##########+####### #?????????????????? | | ???# #??????# ! #?? ###?????????????????? | | ???# ####???# [[ #?? ######???????????????????? | | ?### # ##### ] ] #?## ####?????#######?????????? | | ####+######## ]]] #?# ####### #?????????? | | # + ! # ]] #?# #?????????? | | # # ! #% #?# > #?????????? | | # # !! ########?# #?????????? | | # #????????# !]####### #?????????? | | + #????????#######?????## ##???###???? | | # #?????????????????????# #?? #???? | | # | #?????????????????????# # ===#???? | | # #?????????????????????+ + ===#???? | | #########+#?????????????????????# # ===#???? | | ######### #??????????????######## #?? #???? | +----------------------------------------------------+ Best States ------------- Heat Dissipation 45 Energy Generation 12 Energy Capacity 265 Matter Stores 300 Matter Capacity 300 Sight Range 21 Robot Scan Range 14 Terrain Scan Range 14 Terrain Scan Density 10 ECM Strength 1 Armor Coverage 300 Evasion (%) 55 Targeting Accuracy 8 Recoil Reduction 2 Item Schematics ----------------- None Robot Schematics ------------------ None Fabricated ------------ Nothing Alien Tech Used ----------------- None Achievements -------------- None Challenges ------------ None Game ------ Seed chickoo Manual? 1 Play Time 00:43:00 Cumulative 5.9 hours Start 2024.04.05 @ 14:35:35 End 2024.04.05 @ 15:19:07 Sessions 1 Manual Loads 0 Difficulty Rogue Special Mode None Game No. 6 Rogue 6 Adventurer 0 Explorer 0 Win Type - Total 0 Types 0/0/0/0/0/0/0/0/0 Lore% 12 Gallery% 12 Achievement% 13 Wizard Run 0 Options --------- Layout 1 ASCII 0 Keyboard 0 Movement Mouse Keybinds 0 Fullscreen 1 Font 32/SmallcapsGlow Map View 50x35 Zoom Use 0% Tactical HUD 1 Map Filters NONE Filters NONE Steam 1 RUN: a0dfa9ba-7a76-4d46-9173-c1afce341c54